[Event "Live Chess"]
[Site "Chess.com"]
[Date "2023.05.21"]
[Round "-"]
[White "Missedidea"]
[Black "Conradical12"]
[Result "1-0"]
[WhiteElo "1795"]
[BlackElo "1576"]
[TimeControl "300"]
[EndTime "5:15:13 PDT"]
[Termination "Missedidea won by checkmate"]

1. d4 {[%clk 0:04:58.9]} 1... d5 {[%clk 0:04:57.9]} 2. c4 {[%clk 0:04:57.5]}
2... c6 {[%clk 0:04:55.9]} 3. Nf3 {[%clk 0:04:55.7]} 3... Nf6 {[%clk 0:04:55.2]}
4. Nc3 {[%clk 0:04:54.7]} 4... Bf5 {[%clk 0:04:54.3]} 5. Qb3 {[%clk 0:04:50.3]}
5... Qd7 {[%clk 0:04:49.7]} 6. Ne5 {[%clk 0:04:46.2]} 6... dxc4 {[%clk
0:04:45.1]} 7. Nxd7 {[%clk 0:04:39.6]} 7... cxb3 {[%clk 0:04:43.7]} 8. Nxb8
{[%clk 0:04:33.9]} 8... Rxb8 {[%clk 0:04:33.3]} 9. axb3 {[%clk 0:04:32.3]} 9...
a6 {[%clk 0:04:32.3]} 10. e3 {[%clk 0:04:28.8]} 10... Bc2 {[%clk 0:04:30.2]} 11.
b4 {[%clk 0:04:14.3]} 11... e6 {[%clk 0:04:27.5]} 12. Na2 {[%clk 0:04:09.5]}
12... Bb3 {[%clk 0:04:24]} 13. Bd2 {[%clk 0:04:07.9]} 13... Nd5 {[%clk
0:04:18.8]} 14. Be2 {[%clk 0:03:57.3]} 14... Bxa2 {[%clk 0:04:13.6]} 15. Rxa2
{[%clk 0:03:55.1]} 15... Nxb4 {[%clk 0:04:12.2]} 16. Ra4 {[%clk 0:03:51.9]}
16... Nd5 {[%clk 0:03:38.8]} 17. O-O {[%clk 0:03:48.1]} 17... Bd6 {[%clk
0:03:35.6]} 18. g3 {[%clk 0:03:42.6]} 18... O-O {[%clk 0:03:33.6]} 19. e4 {[%clk
0:03:41.2]} 19... Nc7 {[%clk 0:03:28.6]} 20. e5 {[%clk 0:03:37.3]} 20... Be7
{[%clk 0:03:27.4]} 21. Bc3 {[%clk 0:03:27.8]} 21... f6 {[%clk 0:03:25.5]} 22. f4
{[%clk 0:03:24.4]} 22... Nd5 {[%clk 0:03:22.5]} 23. Re1 {[%clk 0:03:13.5]} 23...
fxe5 {[%clk 0:03:19.1]} 24. fxe5 {[%clk 0:03:04.9]} 24... Bg5 {[%clk 0:03:17]}
25. Bg4 {[%clk 0:02:54.7]} 25... Rbe8 {[%clk 0:03:06.8]} 26. h4 {[%clk
0:02:35.6]} 26... Be3+ {[%clk 0:03:03]} 27. Kg2 {[%clk 0:02:33.5]} 27... Rf2+
{[%clk 0:02:58.2]} 28. Kh3 {[%clk 0:02:31.4]} 28... g6 {[%clk 0:02:43.7]} 29. h5
{[%clk 0:02:04.8]} 29... gxh5 {[%clk 0:02:39.6]} 30. Bxh5 {[%clk 0:02:03.1]}
30... Ref8 {[%clk 0:02:38.5]} 31. Bg4 {[%clk 0:01:58.8]} 31... Kg7 {[%clk
0:02:29.7]} 32. Bxe6 {[%clk 0:01:55.7]} 32... Bd2 {[%clk 0:02:22.1]} 33. Bxd5
{[%clk 0:01:50.6]} 33... Bxe1 {[%clk 0:02:12.9]} 34. Bxe1 {[%clk 0:01:47.7]}
34... Re2 {[%clk 0:02:02.6]} 35. Bb4 {[%clk 0:01:43.4]} 35... Rff2 {[%clk
0:01:57]} 36. Bc4 {[%clk 0:01:36.5]} 36... Rxb2 {[%clk 0:01:50.7]} 37. d5 {[%clk
0:01:26.4]} 37... h5 {[%clk 0:01:46.1]} 38. Kh4 {[%clk 0:01:20.5]} 38... Kh6
{[%clk 0:01:28.8]} 39. g4 {[%clk 0:01:05]} 39... Rf4 {[%clk 0:01:10.4]} 40. Kg3
{[%clk 0:00:45]} 40... Rxg4+ {[%clk 0:01:06.8]} 41. Kf3 {[%clk 0:00:43.9]} 41...
Rxc4 {[%clk 0:01:02.7]} 42. Bf8+ {[%clk 0:00:40.1]} 42... Kg6 {[%clk 0:00:59.2]}
43. Rxc4 {[%clk 0:00:38.2]} 43... cxd5 {[%clk 0:00:57.4]} 44. Rc7 {[%clk
0:00:35]} 44... b5 {[%clk 0:00:53.8]} 45. e6 {[%clk 0:00:33.4]} 45... Rb3+
{[%clk 0:00:28.5]} 46. Kf4 {[%clk 0:00:28.6]} 46... Rb4+ {[%clk 0:00:19.5]} 47.
Bxb4 {[%clk 0:00:23.6]} 47... d4 {[%clk 0:00:18]} 48. e7 {[%clk 0:00:21.1]}
48... Kf7 {[%clk 0:00:16.9]} 49. Rc8 {[%clk 0:00:19.8]} 49... d3 {[%clk
0:00:13.5]} 50. e8=Q+ {[%clk 0:00:18.1]} 50... Kf6 {[%clk 0:00:12.6]} 51. Rc6+
{[%clk 0:00:15.3]} 51... Kg7 {[%clk 0:00:11.8]} 52. Rg6+ {[%clk 0:00:11.7]}
52... Kh7 {[%clk 0:00:10.8]} 53. Qg8# {[%clk 0:00:10.9]} 1-0

[Event "Live Chess"]
[Site "Chess.com"]
[Date "2023.05.21"]
[Round "-"]
[White "Chesscoach_Golichenko"]
[Black "DoYouLikeCurry"]
[Result "1-0"]
[WhiteElo "2612"]
[BlackElo "1442"]
[TimeControl "300"]
[EndTime "5:15:13 PDT"]
[Termination "Chesscoach_Golichenko won by resignation"]

1. d4 {[%clk 0:04:57.6]} 1... d5 {[%clk 0:04:58.3]} 2. Nc3 {[%clk 0:04:56.3]}
2... Nf6 {[%clk 0:04:56.3]} 3. Bf4 {[%clk 0:04:55.1]} 3... c5 {[%clk 0:04:54.2]}
4. e3 {[%clk 0:04:53.9]} 4... Nc6 {[%clk 0:04:50.3]} 5. Nb5 {[%clk 0:04:49.6]}
5... Qa5+ {[%clk 0:04:44.6]} 6. c3 {[%clk 0:04:43.6]} 6... Kd7 {[%clk
0:04:09.5]} 7. Bc7 {[%clk 0:04:34.8]} 7... Qa6 {[%clk 0:03:56.9]} 8. dxc5 {[%clk
0:04:25.8]} 8... b6 {[%clk 0:03:44.8]} 9. cxb6 {[%clk 0:04:18.2]} 9... axb6
{[%clk 0:03:42.1]} 10. e4 {[%clk 0:04:17.6]} 10... Nxe4 {[%clk 0:03:32.3]} 11.
Qxd5+ {[%clk 0:04:11.9]} 11... Nd6 {[%clk 0:03:23.9]} 12. Nxd6 {[%clk
0:04:09.1]} 12... exd6 {[%clk 0:03:23.1]} 13. Bxa6 {[%clk 0:04:06.4]} 1-0

[Event "Live Chess"]
[Site "Chess.com"]
[Date "2023.05.21"]
[Round "-"]
[White "Hacker_2009"]
[Black "Oleg03082013"]
[Result "1-0"]
[WhiteElo "1937"]
[BlackElo "1142"]
[TimeControl "300"]
[EndTime "5:15:31 PDT"]
[Termination "Hacker_2009 won by checkmate"]

1. d4 {[%clk 0:04:54.5]} 1... d5 {[%clk 0:04:58.7]} 2. Nf3 {[%clk 0:04:52.5]}
2... Nf6 {[%clk 0:04:57.5]} 3. e3 {[%clk 0:04:50.4]} 3... Bf5 {[%clk 0:04:52.7]}
4. c4 {[%clk 0:04:48.5]} 4... e6 {[%clk 0:04:46.3]} 5. Nc3 {[%clk 0:04:47]} 5...
Bb4 {[%clk 0:04:38.5]} 6. Bd2 {[%clk 0:04:45.2]} 6... Ne4 {[%clk 0:04:36.4]} 7.
Nxe4 {[%clk 0:04:42.5]} 7... Bxd2+ {[%clk 0:04:33.3]} 8. Nexd2 {[%clk
0:04:41.3]} 8... O-O {[%clk 0:04:33.2]} 9. Be2 {[%clk 0:04:39.5]} 9... Nd7
{[%clk 0:04:26]} 10. O-O {[%clk 0:04:38.9]} 10... Nf6 {[%clk 0:04:23.8]} 11. Rc1
{[%clk 0:04:36.6]} 11... c6 {[%clk 0:04:16.3]} 12. cxd5 {[%clk 0:04:34.3]} 12...
exd5 {[%clk 0:04:12.4]} 13. Ne5 {[%clk 0:04:32.4]} 13... Re8 {[%clk 0:04:09.1]}
14. Nb3 {[%clk 0:04:30.7]} 14... Ne4 {[%clk 0:04:06.8]} 15. Nc5 {[%clk
0:04:25.3]} 15... Qh4 {[%clk 0:04:01.8]} 16. Nf3 {[%clk 0:04:19.3]} 16... Qh6
{[%clk 0:03:50.4]} 17. Nxb7 {[%clk 0:04:17.1]} 17... Qg6 {[%clk 0:03:47.7]} 18.
Ne5 {[%clk 0:04:12.3]} 18... Qg5 {[%clk 0:03:44.8]} 19. Nd6 {[%clk 0:04:10.4]}
19... Bh3 {[%clk 0:03:42.6]} 20. Bf3 {[%clk 0:03:58.9]} 20... Re6 {[%clk
0:03:38.3]} 21. Nxe4 {[%clk 0:03:56.8]} 21... Qf5 {[%clk 0:03:33]} 22. Ng3
{[%clk 0:03:54]} 22... Qf6 {[%clk 0:03:24]} 23. gxh3 {[%clk 0:03:52.3]} 23...
Qh6 {[%clk 0:03:17.2]} 24. Bg2 {[%clk 0:03:49.9]} 24... Rae8 {[%clk 0:03:12.2]}
25. Qa4 {[%clk 0:03:45.2]} 25... Qg5 {[%clk 0:03:10.3]} 26. Rxc6 {[%clk
0:03:42.8]} 26... Rh6 {[%clk 0:02:44.7]} 27. Rxh6 {[%clk 0:03:40.3]} 27... Qxh6
{[%clk 0:02:25.2]} 28. Qxe8# {[%clk 0:03:39]} 1-0

[Event "Live Chess"]
[Site "Chess.com"]
[Date "2023.05.21"]
[Round "-"]
[White "MarkLim1"]
[Black "Crowded_House"]
[Result "1-0"]
[WhiteElo "1698"]
[BlackElo "1610"]
[TimeControl "300"]
[EndTime "5:15:50 PDT"]
[Termination "MarkLim1 won by resignation"]

1. d4 {[%clk 0:04:59.1]} 1... e6 {[%clk 0:04:58.6]} 2. Nf3 {[%clk 0:04:58.3]}
2... d5 {[%clk 0:04:58.2]} 3. c4 {[%clk 0:04:56.5]} 3... c5 {[%clk 0:04:55.3]}
4. cxd5 {[%clk 0:04:55.3]} 4... Qxd5 {[%clk 0:04:52.9]} 5. Nc3 {[%clk
0:04:53.5]} 5... Qc6 {[%clk 0:04:40.7]} 6. e4 {[%clk 0:04:48.9]} 6... Nf6 {[%clk
0:04:34.3]} 7. Bb5 {[%clk 0:04:47.2]} 7... a6 {[%clk 0:04:23.6]} 8. Bxc6+ {[%clk
0:04:46]} 8... bxc6 {[%clk 0:04:23]} 9. O-O {[%clk 0:04:43.6]} 9... cxd4 {[%clk
0:04:21.9]} 10. Nxd4 {[%clk 0:04:42.3]} 10... c5 {[%clk 0:04:20.6]} 11. Nf3
{[%clk 0:04:39.1]} 11... Bb7 {[%clk 0:04:18.1]} 12. e5 {[%clk 0:04:36.6]} 1-0

[Event "Live Chess"]
[Site "Chess.com"]
[Date "2023.05.21"]
[Round "-"]
[White "Tilbs_12"]
[Black "defenderalist"]
[Result "1-0"]
[WhiteElo "1583"]
[BlackElo "1641"]
[TimeControl "300"]
[EndTime "5:15:59 PDT"]
[Termination "Tilbs_12 won by checkmate"]

1. e4 {[%clk 0:04:58.3]} 1... e6 {[%clk 0:04:58.3]} 2. d4 {[%clk 0:04:57.5]}
2... d5 {[%clk 0:04:55.4]} 3. e5 {[%clk 0:04:56.7]} 3... c5 {[%clk 0:04:54.2]}
4. c3 {[%clk 0:04:55.7]} 4... Nc6 {[%clk 0:04:52]} 5. Nf3 {[%clk 0:04:55.2]}
5... g6 {[%clk 0:04:49.7]} 6. Bd3 {[%clk 0:04:54.1]} 6... c4 {[%clk 0:04:48.3]}
7. Bc2 {[%clk 0:04:53]} 7... Bg7 {[%clk 0:04:47.6]} 8. O-O {[%clk 0:04:51.3]}
8... Nge7 {[%clk 0:04:46.7]} 9. Bg5 {[%clk 0:04:46.7]} 9... Qc7 {[%clk
0:04:41.4]} 10. Re1 {[%clk 0:04:44.3]} 10... h6 {[%clk 0:04:38.3]} 11. Bh4
{[%clk 0:04:42.4]} 11... g5 {[%clk 0:04:37.2]} 12. Bg3 {[%clk 0:04:41.6]} 12...
Nf5 {[%clk 0:04:34]} 13. Na3 {[%clk 0:04:37.7]} 13... Nxg3 {[%clk 0:04:29.3]}
14. fxg3 {[%clk 0:04:36]} 14... a6 {[%clk 0:04:28]} 15. b4 {[%clk 0:04:21.5]}
15... cxb3 {[%clk 0:04:12.7]} 16. axb3 {[%clk 0:04:19.9]} 16... Bd7 {[%clk
0:04:10.3]} 17. Qd3 {[%clk 0:04:15.1]} 17... Na7 {[%clk 0:04:07.6]} 18. c4
{[%clk 0:04:06.3]} 18... dxc4 {[%clk 0:04:02.3]} 19. bxc4 {[%clk 0:04:05.5]}
19... O-O {[%clk 0:03:59.8]} 20. Bb3 {[%clk 0:03:57.5]} 20... f5 {[%clk
0:03:47.2]} 21. c5 {[%clk 0:03:36.5]} 21... Nb5 {[%clk 0:03:41.3]} 22. Nc4
{[%clk 0:03:33.4]} 22... Bc6 {[%clk 0:03:34.3]} 23. Ba4 {[%clk 0:03:29.2]} 23...
Rad8 {[%clk 0:03:26.8]} 24. Bxb5 {[%clk 0:03:24.2]} 24... Bxb5 {[%clk
0:03:22.4]} 25. Qc3 {[%clk 0:03:23.3]} 25... Bxc4 {[%clk 0:03:21.4]} 26. Qxc4
{[%clk 0:03:21.7]} 26... g4 {[%clk 0:03:16.6]} 27. Nd2 {[%clk 0:03:17.3]} 27...
Qc6 {[%clk 0:03:12.9]} 28. Nb3 {[%clk 0:03:11.1]} 28... Qd5 {[%clk 0:03:11.7]}
29. Qxd5 {[%clk 0:03:07.1]} 29... Rxd5 {[%clk 0:03:10.6]} 30. Red1 {[%clk
0:03:01.3]} 30... Rfd8 {[%clk 0:03:09.2]} 31. Kf2 {[%clk 0:02:55.4]} 31... Bxe5
{[%clk 0:03:05.9]} 32. Ke3 {[%clk 0:02:47.4]} 32... Bf6 {[%clk 0:02:57.6]} 33.
Rd3 {[%clk 0:02:44.6]} 33... Bg5+ {[%clk 0:02:55.9]} 34. Ke2 {[%clk 0:02:42.4]}
34... e5 {[%clk 0:02:53.5]} 35. Rc3 {[%clk 0:02:26.7]} 35... exd4 {[%clk
0:02:31.4]} 36. Rd3 {[%clk 0:02:25.2]} 36... Re5+ {[%clk 0:02:24.4]} 37. Kf1
{[%clk 0:02:23.2]} 37... Re4 {[%clk 0:02:08]} 38. Rad1 {[%clk 0:02:16.2]} 38...
Bf6 {[%clk 0:02:06.6]} 39. Na5 {[%clk 0:02:09.5]} 39... Re7 {[%clk 0:01:53.4]}
40. Nc4 {[%clk 0:02:06.6]} 40... Kf7 {[%clk 0:01:47.9]} 41. Nd6+ {[%clk
0:02:05.4]} 41... Kg6 {[%clk 0:01:43.9]} 42. Rb1 {[%clk 0:01:49.9]} 42... Re3
{[%clk 0:01:34.7]} 43. Rxe3 {[%clk 0:01:43.5]} 43... dxe3 {[%clk 0:01:33.1]} 44.
Rxb7 {[%clk 0:01:38.8]} 44... Bd4 {[%clk 0:01:31.5]} 45. Nf7 {[%clk 0:01:21]}
45... Bxc5 {[%clk 0:01:21.7]} 46. Nxd8 {[%clk 0:01:19.5]} 46... a5 {[%clk
0:01:15.9]} 47. Ne6 {[%clk 0:01:13]} 47... Bb4 {[%clk 0:01:13.7]} 48. Ke2 {[%clk
0:01:08.1]} 48... Bd2 {[%clk 0:01:11.3]} 49. Nc5 {[%clk 0:01:01.4]} 49... Kf6
{[%clk 0:01:09.6]} 50. Nb3 {[%clk 0:00:59.4]} 50... Bb4 {[%clk 0:01:08]} 51.
Rb6+ {[%clk 0:00:56.9]} 51... Ke5 {[%clk 0:01:06.8]} 52. Rxh6 {[%clk 0:00:55.4]}
52... a4 {[%clk 0:01:05.3]} 53. Nd4 {[%clk 0:00:51.1]} 53... Bd2 {[%clk
0:00:59.5]} 54. Nc2 {[%clk 0:00:44.8]} 54... Ke4 {[%clk 0:00:58]} 55. Ra6 {[%clk
0:00:42.3]} 55... f4 {[%clk 0:00:53.8]} 56. gxf4 {[%clk 0:00:40.2]} 56... Kxf4
{[%clk 0:00:53]} 57. Rxa4+ {[%clk 0:00:38.9]} 57... Kg5 {[%clk 0:00:51.9]} 58.
Nxe3 {[%clk 0:00:37.7]} 58... Bxe3 {[%clk 0:00:50.8]} 59. Kxe3 {[%clk 0:00:37]}
59... Kf5 {[%clk 0:00:49.1]} 60. Kf2 {[%clk 0:00:34.4]} 60... Kg5 {[%clk
0:00:48.4]} 61. Kg3 {[%clk 0:00:33.7]} 61... Kf5 {[%clk 0:00:47.7]} 62. h4
{[%clk 0:00:31.5]} 62... gxh3 {[%clk 0:00:46.3]} 63. Kxh3 {[%clk 0:00:30.6]}
63... Kg5 {[%clk 0:00:45.7]} 64. Kg3 {[%clk 0:00:27.4]} 64... Kf5 {[%clk
0:00:45]} 65. Kh4 {[%clk 0:00:26.6]} 65... Kg6 {[%clk 0:00:44.2]} 66. Ra5 {[%clk
0:00:25.2]} 66... Kf6 {[%clk 0:00:44.1]} 67. Kh5 {[%clk 0:00:24.3]} 67... Ke6
{[%clk 0:00:43.1]} 68. Kg6 {[%clk 0:00:21.7]} 68... Kd6 {[%clk 0:00:43]} 69. Kf7
{[%clk 0:00:20.6]} 69... Kc6 {[%clk 0:00:41.7]} 70. g4 {[%clk 0:00:19.2]} 70...
Kb6 {[%clk 0:00:41.6]} 71. Re5 {[%clk 0:00:18.3]} 71... Kc6 {[%clk 0:00:41.1]}
72. g5 {[%clk 0:00:17.8]} 72... Kd6 {[%clk 0:00:41]} 73. Ra5 {[%clk 0:00:17.2]}
73... Kc6 {[%clk 0:00:40.1]} 74. g6 {[%clk 0:00:17.1]} 74... Kb6 {[%clk
0:00:39.8]} 75. g7 {[%clk 0:00:17]} 75... Kxa5 {[%clk 0:00:38.9]} 76. g8=Q
{[%clk 0:00:16.6]} 76... Kb5 {[%clk 0:00:38.7]} 77. Qc8 {[%clk 0:00:15.9]} 77...
Kb6 {[%clk 0:00:37.9]} 78. Ke6 {[%clk 0:00:15.8]} 78... Kb5 {[%clk 0:00:37.1]}
79. Kd6 {[%clk 0:00:14.9]} 79... Kb6 {[%clk 0:00:37]} 80. Qc7+ {[%clk
0:00:14.1]} 80... Kb5 {[%clk 0:00:36.4]} 81. Qc6+ {[%clk 0:00:13.6]} 81... Kb4
{[%clk 0:00:36]} 82. Kd5 {[%clk 0:00:12.9]} 82... Kb3 {[%clk 0:00:35]} 83. Qc5
{[%clk 0:00:12]} 83... Kb2 {[%clk 0:00:34.4]} 84. Kd4 {[%clk 0:00:11.5]} 84...
Kb3 {[%clk 0:00:34.3]} 85. Qc4+ {[%clk 0:00:10.3]} 85... Kb2 {[%clk 0:00:33.9]}
86. Kd3 {[%clk 0:00:09.6]} 86... Ka1 {[%clk 0:00:31.7]} 87. Qb5 {[%clk
0:00:08.4]} 87... Ka2 {[%clk 0:00:30.5]} 88. Kc3 {[%clk 0:00:07.8]} 88... Ka1
{[%clk 0:00:29.8]} 89. Qb2# {[%clk 0:00:07]} 1-0

[Event "Live Chess"]
[Site "Chess.com"]
[Date "2023.05.21"]
[Round "-"]
[White "Vitalii18a"]
[Black "AlexanderMatlak"]
[Result "0-1"]
[WhiteElo "1136"]
[BlackElo "2500"]
[TimeControl "300"]
[EndTime "5:16:01 PDT"]
[Termination "AlexanderMatlak won by checkmate"]

1. e4 {[%clk 0:04:55.9]} 1... c5 {[%clk 0:04:58.8]} 2. Nf3 {[%clk 0:04:53.3]}
2... d6 {[%clk 0:04:58]} 3. c3 {[%clk 0:04:50.9]} 3... Nf6 {[%clk 0:04:56.7]} 4.
Bd3 {[%clk 0:04:48.8]} 4... Bg4 {[%clk 0:04:55.1]} 5. O-O {[%clk 0:04:47.1]}
5... Nc6 {[%clk 0:04:53.5]} 6. h3 {[%clk 0:04:45.9]} 6... Bxf3 {[%clk
0:04:52.2]} 7. Qxf3 {[%clk 0:04:44.4]} 7... g6 {[%clk 0:04:51.5]} 8. Re1 {[%clk
0:04:39.8]} 8... Bg7 {[%clk 0:04:44.5]} 9. Bb5 {[%clk 0:04:36.8]} 9... O-O
{[%clk 0:04:39.9]} 10. d4 {[%clk 0:04:31.7]} 10... cxd4 {[%clk 0:04:35.8]} 11.
cxd4 {[%clk 0:04:30]} 11... Nxd4 {[%clk 0:04:34.2]} 12. Qd3 {[%clk 0:04:24]}
12... Nd7 {[%clk 0:04:30.7]} 13. Bxd7 {[%clk 0:04:12.5]} 13... Qxd7 {[%clk
0:04:30.6]} 14. Be3 {[%clk 0:03:55.5]} 14... Nc6 {[%clk 0:04:24.5]} 15. Nc3
{[%clk 0:03:52.1]} 15... Ne5 {[%clk 0:04:23.1]} 16. Qe2 {[%clk 0:03:31.5]} 16...
Rfc8 {[%clk 0:04:18.8]} 17. f4 {[%clk 0:03:23.5]} 17... Nc4 {[%clk 0:04:17.3]}
18. Red1 {[%clk 0:03:11.7]} 18... Nxb2 {[%clk 0:04:13.4]} 19. Qxb2 {[%clk
0:03:08.5]} 19... Bxc3 {[%clk 0:04:00.9]} 20. Qf2 {[%clk 0:02:48.7]} 20... Bxa1
{[%clk 0:03:58.9]} 21. Rxa1 {[%clk 0:02:45.4]} 21... Qa4 {[%clk 0:03:57.3]} 22.
Qg3 {[%clk 0:02:36]} 22... Qxe4 {[%clk 0:03:54.3]} 23. Qf2 {[%clk 0:02:12.9]}
23... Rc2 {[%clk 0:03:52]} 24. Qg3 {[%clk 0:02:07.6]} 24... Rac8 {[%clk
0:03:50.2]} 25. Bf2 {[%clk 0:02:00.9]} 25... Rc1+ {[%clk 0:03:45.3]} 26. Rxc1
{[%clk 0:01:58.1]} 26... Rxc1+ {[%clk 0:03:45.2]} 27. Kh2 {[%clk 0:01:57.7]}
27... Rc2 {[%clk 0:03:43.9]} 28. Bxa7 {[%clk 0:01:52.9]} 28... Rxa2 {[%clk
0:03:40.2]} 29. Bb6 {[%clk 0:01:42.8]} 29... Rb2 {[%clk 0:03:34.7]} 30. Bf2
{[%clk 0:01:36.2]} 30... b5 {[%clk 0:03:30.6]} 31. Bb6 {[%clk 0:01:20.9]} 31...
b4 {[%clk 0:03:28]} 32. h4 {[%clk 0:01:16]} 32... b3 {[%clk 0:03:26.5]} 33. h5
{[%clk 0:01:15]} 33... Rxg2+ {[%clk 0:03:23.6]} 34. Qxg2 {[%clk 0:01:11.9]}
34... Qxg2+ {[%clk 0:03:23.5]} 35. Kxg2 {[%clk 0:01:10.2]} 35... b2 {[%clk
0:03:23.4]} 36. hxg6 {[%clk 0:01:02.7]} 36... hxg6 {[%clk 0:03:21.9]} 37. Bd8
{[%clk 0:00:56]} 37... b1=Q {[%clk 0:03:20.2]} 38. Bxe7 {[%clk 0:00:55.9]} 38...
Qe4+ {[%clk 0:03:17.9]} 39. Kg3 {[%clk 0:00:50.4]} 39... Qxe7 {[%clk 0:03:17.8]}
40. f5 {[%clk 0:00:48.5]} 40... gxf5 {[%clk 0:03:15.5]} 41. Kf4 {[%clk
0:00:47.3]} 41... d5 {[%clk 0:03:14.6]} 42. Kxf5 {[%clk 0:00:45.6]} 42... d4
{[%clk 0:03:13.9]} 43. Kf4 {[%clk 0:00:44.3]} 43... d3 {[%clk 0:03:13.1]} 44.
Kg3 {[%clk 0:00:39.3]} 44... d2 {[%clk 0:03:12]} 45. Kf2 {[%clk 0:00:37.6]}
45... d1=Q {[%clk 0:03:10.3]} 46. Kg3 {[%clk 0:00:36.4]} 46... Qd3+ {[%clk
0:03:09.1]} 47. Kf4 {[%clk 0:00:35.3]} 47... Qee4+ {[%clk 0:03:08.3]} 48. Kg5
{[%clk 0:00:34.1]} 48... Qf5+ {[%clk 0:03:07.2]} 49. Kh4 {[%clk 0:00:32.8]}
49... Qdh3# {[%clk 0:03:06.3]} 0-1

[Event "Live Chess"]
[Site "Chess.com"]
[Date "2023.05.21"]
[Round "-"]
[White "Ferrarifan27"]
[Black "jbooth"]
[Result "1-0"]
[WhiteElo "2071"]
[BlackElo "1672"]
[TimeControl "300"]
[EndTime "5:16:06 PDT"]
[Termination "Ferrarifan27 won by resignation"]

1. e4 {[%clk 0:04:59]} 1... d6 {[%clk 0:04:57.7]} 2. d4 {[%clk 0:04:57.3]} 2...
Nf6 {[%clk 0:04:57.1]} 3. Nc3 {[%clk 0:04:55.7]} 3... Nbd7 {[%clk 0:04:56.6]} 4.
Nf3 {[%clk 0:04:53.8]} 4... e5 {[%clk 0:04:55]} 5. dxe5 {[%clk 0:04:51.9]} 5...
dxe5 {[%clk 0:04:53.2]} 6. Bc4 {[%clk 0:04:49.6]} 6... Be7 {[%clk 0:04:49.7]} 7.
h3 {[%clk 0:04:44.1]} 7... c6 {[%clk 0:04:48.9]} 8. Be3 {[%clk 0:04:40.1]} 8...
h6 {[%clk 0:04:47.6]} 9. O-O {[%clk 0:04:36.2]} 9... Qc7 {[%clk 0:04:46.3]} 10.
Bb3 {[%clk 0:04:34.5]} 10... g5 {[%clk 0:04:44.1]} 11. Qe2 {[%clk 0:04:31.6]}
11... Nf8 {[%clk 0:04:41.9]} 12. Rad1 {[%clk 0:04:29]} 12... Ng6 {[%clk
0:04:40.9]} 13. Qc4 {[%clk 0:04:12.4]} 13... Be6 {[%clk 0:04:34.6]} 14. Qd3
{[%clk 0:04:04.1]} 14... Bxb3 {[%clk 0:04:31.3]} 15. axb3 {[%clk 0:04:02.4]}
15... Nf4 {[%clk 0:04:26.5]} 16. Bxf4 {[%clk 0:04:00.6]} 16... gxf4 {[%clk
0:04:24.6]} 17. Nh4 {[%clk 0:03:53.4]} 17... Rd8 {[%clk 0:04:14.4]} 18. Qc4
{[%clk 0:03:51.2]} 18... Nxe4 {[%clk 0:04:02.4]} 19. Nxe4 {[%clk 0:03:43.7]}
19... Bxh4 {[%clk 0:03:59.5]} 20. Rxd8+ {[%clk 0:03:42.2]} 20... Qxd8 {[%clk
0:03:56.8]} 21. Qc5 {[%clk 0:03:33.7]} 21... Qe7 {[%clk 0:03:42.2]} 22. Qxa7
{[%clk 0:03:27.7]} 22... O-O {[%clk 0:03:41.7]} 23. Rd1 {[%clk 0:03:12.5]} 23...
f5 {[%clk 0:03:33.5]} 24. Qc5 {[%clk 0:03:00.8]} 24... Rd8 {[%clk 0:03:21.4]}
25. Rxd8+ {[%clk 0:02:49.4]} 25... Qxd8 {[%clk 0:03:19]} 26. Nd6 {[%clk
0:02:45.7]} 26... Bg5 {[%clk 0:03:12.9]} 27. Qxe5 {[%clk 0:02:42.5]} 27... Qd7
{[%clk 0:02:40.3]} 28. Nxf5 {[%clk 0:02:39.5]} 28... f3 {[%clk 0:02:34]} 29.
gxf3 {[%clk 0:02:33.6]} 29... Qd1+ {[%clk 0:02:26.2]} 30. Kg2 {[%clk 0:02:31.7]}
30... Qd2 {[%clk 0:02:19.7]} 31. Qe6+ {[%clk 0:02:28.5]} 31... Kf8 {[%clk
0:02:16.4]} 32. Qd6+ {[%clk 0:02:25.5]} 32... Qxd6 {[%clk 0:02:12.7]} 33. Nxd6
{[%clk 0:02:25.4]} 33... b6 {[%clk 0:02:02.7]} 34. Kg3 {[%clk 0:02:20]} 34...
Bc1 {[%clk 0:02:00.5]} 35. Nc4 {[%clk 0:02:16.5]} 35... b5 {[%clk 0:01:55.9]}
36. Ne5 {[%clk 0:02:16.1]} 36... c5 {[%clk 0:01:53.1]} 37. Nd7+ {[%clk 0:02:15]}
37... Ke7 {[%clk 0:01:51]} 38. Nxc5 {[%clk 0:02:14.9]} 38... Bxb2 {[%clk
0:01:48.6]} 39. Nd3 {[%clk 0:02:09.8]} 39... Bd4 {[%clk 0:01:44.1]} 40. f4
{[%clk 0:02:06.1]} 40... Ke6 {[%clk 0:01:40.8]} 41. Kf3 {[%clk 0:02:03.5]} 41...
Kf5 {[%clk 0:01:37.3]} 42. Ne1 {[%clk 0:02:00]} 1-0

[Event "Live Chess"]
[Site "Chess.com"]
[Date "2023.05.21"]
[Round "-"]
[White "JoshMcK"]
[Black "luckywookie"]
[Result "1-0"]
[WhiteElo "1561"]
[BlackElo "783"]
[TimeControl "300"]
[EndTime "5:16:08 PDT"]
[Termination "JoshMcK won by checkmate"]

1. e4 {[%clk 0:04:57.7]} 1... c6 {[%clk 0:04:58.4]} 2. d4 {[%clk 0:04:56.5]}
2... d5 {[%clk 0:04:57.1]} 3. e5 {[%clk 0:04:54.7]} 3... e6 {[%clk 0:04:54.9]}
4. Nf3 {[%clk 0:04:50.9]} 4... Ne7 {[%clk 0:04:51.9]} 5. Bd3 {[%clk 0:04:47.4]}
5... Nf5 {[%clk 0:04:48.4]} 6. O-O {[%clk 0:04:44.6]} 6... Nd7 {[%clk
0:04:45.2]} 7. Bg5 {[%clk 0:04:35.5]} 7... Qb6 {[%clk 0:04:35.2]} 8. b3 {[%clk
0:04:09.8]} 8... Nxd4 {[%clk 0:04:31.3]} 9. Be3 {[%clk 0:04:04.3]} 9... Nxf3+
{[%clk 0:04:24.5]} 10. Qxf3 {[%clk 0:04:01.7]} 10... Qc7 {[%clk 0:04:13.5]} 11.
Bf4 {[%clk 0:03:52.9]} 11... Nxe5 {[%clk 0:04:06.3]} 12. Qe3 {[%clk 0:03:48.5]}
12... f6 {[%clk 0:04:03.4]} 13. Re1 {[%clk 0:03:45]} 13... b6 {[%clk 0:03:44.7]}
14. Bxe5 {[%clk 0:03:42.9]} 14... fxe5 {[%clk 0:03:37.9]} 15. Qxe5 {[%clk
0:03:42.8]} 15... Qxe5 {[%clk 0:03:36.2]} 16. Rxe5 {[%clk 0:03:41.9]} 16... Bd6
{[%clk 0:03:31]} 17. Re1 {[%clk 0:03:40.7]} 17... e5 {[%clk 0:03:27.5]} 18. Nd2
{[%clk 0:03:35.1]} 18... e4 {[%clk 0:03:25.6]} 19. Bf1 {[%clk 0:03:30.9]} 19...
Be5 {[%clk 0:03:24.4]} 20. Rad1 {[%clk 0:03:27.6]} 20... Bf5 {[%clk 0:03:05.6]}
21. c4 {[%clk 0:03:24.5]} 21... Bc3 {[%clk 0:02:57.1]} 22. cxd5 {[%clk
0:03:17.9]} 22... cxd5 {[%clk 0:02:55.9]} 23. Bb5+ {[%clk 0:03:17.2]} 23... Ke7
{[%clk 0:02:53]} 24. Bc6 {[%clk 0:03:03.6]} 24... Kd6 {[%clk 0:02:43]} 25. Bxa8
{[%clk 0:02:58.2]} 25... Rxa8 {[%clk 0:02:42.5]} 26. Re3 {[%clk 0:02:41.4]}
26... Bb4 {[%clk 0:02:11.2]} 27. Nxe4+ {[%clk 0:02:32.8]} 27... Ke5 {[%clk
0:02:09.4]} 28. Nc3+ {[%clk 0:02:23.4]} 28... Be4 {[%clk 0:02:07.2]} 29. Rxd5+
{[%clk 0:02:14.1]} 29... Kf4 {[%clk 0:02:00.8]} 30. Rxe4# {[%clk 0:02:10]} 1-0